[Event "2e tournoi de GMI du Barreau de Paris"]
[Site "Paris, France"]
[Date "2021.06.19"]
[Round "1.3"]
[White "Milliet, Sophie"]
[Black "Dardha, Daniel"]
[Result "0-1"]
[TimeControl "90+30"]
[WhiteElo "2407"]
[BlackElo "2503"]

1. e4 {[%clk 01:30:55]} {[%emt 00:00:04]} c5 {[%clk 01:30:48]} {[%emt
00:00:12]} 2. Nf3 {[%clk 01:31:20]} {[%emt 00:00:05]} Nc6 {[%clk 01:31:08]}
{[%emt 00:00:09]} 3. d4 {[%clk 01:31:40]} {[%emt 00:00:10]} cxd4 {[%clk
01:31:29]} {[%emt 00:00:09]} 4. Nxd4 {[%clk 01:32:08]} {[%emt 00:00:03]} e5
{[%clk 01:31:43]} {[%emt 00:00:15]} 5. Nb5 {[%clk 01:32:31]} {[%emt 00:00:08]}
d6 {[%clk 01:32:03]} {[%emt 00:00:10]} 6. c4 {[%clk 01:31:55]} {[%emt
00:01:06]} g6 {[%clk 01:30:14]} {[%emt 00:02:17]} 7. Bd3 {[%clk 01:31:11]}
{[%emt 00:01:14]} Be6 {[%clk 01:27:31]} {[%emt 00:03:13]} 8. O-O {[%clk
01:30:59]} {[%emt 00:00:43]} Nf6 {[%clk 01:24:31]} {[%emt 00:03:29]} 9. N5c3
{[%clk 01:17:30]} {[%emt 00:14:00]} Bg7 {[%clk 01:22:58]} {[%emt 00:02:03]} 10.
Nd5 {[%clk 01:17:43]} {[%emt 00:00:17]} Nd7 {[%clk 01:11:28]} {[%emt 00:11:59]}
11. Nbc3 {[%clk 01:16:32]} {[%emt 00:01:42]} O-O {[%clk 01:10:44]} {[%emt
00:01:12]} 12. Be3 {[%clk 01:14:13]} {[%emt 00:02:51]} a6 {[%clk 00:51:57]}
{[%emt 00:19:17]} 13. Rc1 {[%clk 01:11:55]} {[%emt 00:02:48]} Rc8 {[%clk
00:42:48]} {[%emt 00:09:39]} 14. b3 {[%clk 01:08:53]} {[%emt 00:03:32]} Kh8
{[%clk 00:33:26]} {[%emt 00:09:51]} 15. Bb1 {[%clk 00:48:28]} {[%emt 00:20:56]}
Qh4 {[%clk 00:23:41]} {[%emt 00:10:14]} 16. Qd2 {[%clk 00:41:06]} {[%emt
00:07:54]} f5 {[%clk 00:22:42]} {[%emt 00:01:29]} 17. exf5 {[%clk 00:37:45]}
{[%emt 00:03:51]} gxf5 {[%clk 00:23:05]} {[%emt 00:00:06]} 18. f4 {[%clk
00:35:00]} {[%emt 00:03:15]} e4 {[%clk 00:19:08]} {[%emt 00:04:27]} 19. Ne2
{[%clk 00:24:10]} {[%emt 00:11:21]} Bxd5 {[%clk 00:10:44]} {[%emt 00:08:54]} 20.
cxd5 {[%clk 00:24:24]} {[%emt 00:00:16]} Ne7 {[%clk 00:11:05]} {[%emt
00:00:09]} 21. Nd4 {[%clk 00:20:31]} {[%emt 00:04:23]} Rxc1 {[%clk 00:08:10]}
{[%emt 00:03:24]} 22. Rxc1 {[%clk 00:19:56]} {[%emt 00:01:05]} Nxd5 {[%clk
00:08:08]} {[%emt 00:00:32]} 23. Ne6 {[%clk 00:12:09]} {[%emt 00:08:18]} Nxe3
{[%clk 00:08:23]} {[%emt 00:00:15]} 24. Nxf8 {[%clk 00:09:19]} {[%emt
00:03:20]} Nxf8 {[%clk 00:07:35]} {[%emt 00:01:18]} 25. Qxe3 {[%clk 00:09:31]}
{[%emt 00:00:17]} d5 {[%clk 00:07:11]} {[%emt 00:00:54]} 26. Rd1 {[%clk
00:07:16]} {[%emt 00:02:46]} d4 {[%clk 00:05:43]} {[%emt 00:01:58]} 27. Rxd4
{[%clk 00:07:41]} {[%emt 00:00:05]} Bxd4 {[%clk 00:06:08]} {[%emt 00:00:04]} 28.
Qxd4+ {[%clk 00:08:09]} {[%emt 00:00:02]} Kg8 {[%clk 00:06:29]} {[%emt
00:00:08]} 29. Qd5+ {[%clk 00:06:49]} {[%emt 00:01:50]} Kh8 {[%clk 00:05:38]}
{[%emt 00:01:21]} 30. Qd4+ {[%clk 00:06:40]} {[%emt 00:00:39]} Kg8 {[%clk
00:06:06]} {[%emt 00:00:02]} 31. Qd5+ {[%clk 00:07:06]} {[%emt 00:00:04]} Kg7
{[%clk 00:04:15]} {[%emt 00:02:21]} 32. Qxb7+ {[%clk 00:03:24]} {[%emt
00:04:12]} Kh6 {[%clk 00:03:05]} {[%emt 00:01:40]} 33. Qb6+ {[%clk 00:00:43]}
{[%emt 00:03:11]} Ng6 {[%clk 00:03:20]} {[%emt 00:00:14]} 34. g3 {[%clk
00:00:52]} {[%emt 00:00:22]} Qg4 {[%clk 00:03:13]} {[%emt 00:00:36]} 35. Bc2
{[%clk 00:00:38]} {[%emt 00:00:44]} Qf3 {[%clk 00:02:02]} {[%emt 00:01:40]} 36.
Qc6 {[%clk 00:00:44]} {[%emt 00:00:25]} Qe3+ {[%clk 00:01:55]} {[%emt
00:00:37]} 37. Kf1 {[%clk 00:00:52]} {[%emt 00:00:20]} Qf3+ {[%clk 00:01:18]}
{[%emt 00:01:09]} 38. Kg1 {[%clk 00:01:19]} {[%emt 00:00:04]} Qe2 {[%clk
00:00:47]} {[%emt 00:01:00]} 39. Qc4 {[%clk 00:01:00]} {[%emt 00:00:49]} Qd2
{[%clk 00:01:15]} {[%emt 00:00:01]} 40. g4 {[%clk 00:00:36]} {[%emt 00:00:55]}
Nxf4 {[%clk 00:00:55]} {[%emt 00:00:50]} 41. Qxa6+ {[%clk 00:00:31]} {[%emt
00:00:35]} Kg5 {[%clk 00:01:07]} {[%emt 00:00:16]} 0-1

[ePGN "0.1;DGT LiveChess/2.2.5"]

[Event "2e tournoi de GMI du Barreau de Paris"]
[Site "Paris, France"]
[Date "2021.06.19"]
[Round "2.2"]
[White "Dardha, Daniel"]
[Black "Msellek, Ilyass"]
[Result "1/2-1/2"]
[TimeControl "90+30"]
[WhiteElo "2503"]
[BlackElo "2334"]

1. c4 e6 2. Nc3 d5 3. d4 Nf6 4. cxd5 exd5 5. Bg5 Be7 6. Qc2 O-O 7. e3 c6 8. Bd3
Nbd7 9. Nf3 Re8 10. O-O-O Nf8 11. Ne5 N6d7 12. Bf4 Nxe5 13. Bxe5 Bd6 14. Bg3 h6
15. Kb1 a5 16. Na4 Bxg3 17. hxg3 Qd6 18. Nb6 Rb8 19. Qd2 Qd8 20. Nxc8 Rxc8 21.
g4 Nh7 22. Bf5 Ra8 23. f4 Qe7 24. Rh3 g6 25. Bc2 Nf6 26. f5 Ne4 27. Qe2 Kg7 28.
Rf1 g5 29. Rfh1 Rh8 30. Qe1 Nd6 31. Bd1 1/2-1/2

[Event "2e tournoi de GMI du Barreau de Paris"]
[Site "Paris, France"]
[Date "2021.06.19"]
[Round "2.4"]
[White "David, Alberto"]
[Black "Kevlishvili, Robby"]
[Result "1/2-1/2"]
[TimeControl "90+30"]
[WhiteElo "2527"]
[BlackElo "2499"]

1. e4 {[%clk 01:30:53]} {[%emt 00:41:30]} c5 {[%clk 01:30:56]} 2. Nf3 {[%clk
01:31:16]} d6 {[%clk 01:31:22]} 3. Bb5+ {[%clk 01:30:58]} Nd7 {[%clk 01:31:46]}
4. c3 {[%clk 01:31:09]} Ngf6 {[%clk 01:31:48]} 5. Bd3 {[%clk 01:31:21]} g6
{[%clk 01:31:18]} 6. O-O {[%clk 01:30:40]} a6 {[%clk 01:29:43]} 7. Bc2 {[%clk
01:30:49]} b5 {[%clk 01:30:06]} 8. d4 {[%clk 01:31:13]} Bb7 {[%clk 01:30:15]} 9.
Re1 {[%clk 01:27:27]} {[%emt 00:01:51]} cxd4 {[%clk 01:30:26]} {[%emt
00:00:20]} 10. cxd4 {[%clk 01:27:52]} {[%emt 00:00:05]} Bg7 {[%clk 01:30:46]}
{[%emt 00:00:09]} 11. a3 {[%clk 01:10:56]} {[%emt 00:17:27]} O-O {[%clk
01:30:33]} {[%emt 00:00:42]} 12. Nc3 {[%clk 01:11:22]} {[%emt 00:00:04]} Rc8
{[%clk 01:29:28]} {[%emt 00:01:34]} 13. Bd3 {[%clk 01:04:46]} {[%emt 00:07:06]}
Nb6 {[%clk 01:28:09]} {[%emt 00:01:49]} 14. h3 {[%clk 00:56:23]} {[%emt
00:08:54]} Qc7 {[%clk 01:23:57]} {[%emt 00:04:41]} 15. Bf4 {[%clk 00:53:58]}
{[%emt 00:02:55]} Nc4 {[%clk 01:18:04]} {[%emt 00:06:23]} 16. Qe2 {[%clk
00:50:13]} {[%emt 00:04:15]} Nh5 {[%clk 00:59:57]} {[%emt 00:18:38]} 17. Bc1
{[%clk 00:45:51]} {[%emt 00:04:51]} e5 {[%clk 00:49:32]} {[%emt 00:10:55]} 18.
d5 {[%clk 00:42:02]} {[%emt 00:04:19]} Nf4 {[%clk 00:49:30]} {[%emt 00:00:32]}
19. Bxf4 {[%clk 00:41:14]} {[%emt 00:01:18]} exf4 {[%clk 00:49:54]} {[%emt
00:00:06]} 20. Bxc4 {[%clk 00:39:07]} {[%emt 00:02:37]} Qxc4 {[%clk 00:43:41]}
{[%emt 00:06:42]} 21. Qd2 {[%clk 00:39:25]} {[%emt 00:00:12]} Bxc3 {[%clk
00:39:23]} {[%emt 00:04:48]} 22. bxc3 {[%clk 00:39:39]} {[%emt 00:00:17]} Rfe8
{[%clk 00:39:25]} {[%emt 00:00:29]} 23. Qxf4 {[%clk 00:39:02]} {[%emt
00:01:06]} Bxd5 {[%clk 00:39:34]} {[%emt 00:00:21]} 24. Qh6 {[%clk 00:35:32]}
{[%emt 00:04:00]} Rxe4 {[%clk 00:30:19]} {[%emt 00:09:46]} 25. Rxe4 {[%clk
00:34:22]} {[%emt 00:01:39]} Qxe4 {[%clk 00:30:38]} {[%emt 00:00:10]} 26. Re1
{[%clk 00:34:48]} {[%emt 00:00:05]} Qc2 {[%clk 00:29:00]} {[%emt 00:02:08]} 27.
Ng5 {[%clk 00:33:57]} {[%emt 00:01:21]} Qxc3 {[%clk 00:29:23]} {[%emt
00:00:08]} 28. Qxh7+ {[%clk 00:31:59]} {[%emt 00:02:27]} Kf8 {[%clk 00:29:48]}
{[%emt 00:00:05]} 29. Qh6+ {[%clk 00:26:43]} {[%emt 00:05:46]} Kg8 {[%clk
00:30:08]} {[%emt 00:00:10]} 30. Qh7+ {[%clk 00:26:51]} {[%emt 00:00:23]} Kf8
{[%clk 00:30:28]} {[%emt 00:00:09]} 31. Qh6+ {[%clk 00:27:16]} {[%emt
00:00:05]} Kg8 {[%clk 00:28:46]} {[%emt 00:02:12]} 1/2-1/2

[Event "2e tournoi de GMI du Barreau de Paris"]
[Site "Paris, France"]
[Date "2021.06.19"]
[Round "2.3"]
[White "Vlachos, Anatole"]
[Black "Milliet, Sophie"]
[Result "1-0"]
[TimeControl "90+30"]
[WhiteElo "2439"]
[BlackElo "2407"]

1. e4 {[%clk 01:30:30]} {[%emt 02:26:44]} c5 {[%clk 01:30:30]} 2. Nf3 {[%clk
01:30:30]} e6 {[%clk 01:30:55]} 3. c4 {[%clk 01:30:58]} Nc6 {[%clk 01:31:15]} 4.
d4 {[%clk 01:30:58]} cxd4 5. Nxd4 {[%clk 01:31:47]} Nf6 {[%clk 01:31:43]} 6.
Nc3 {[%clk 01:32:12]} Bb4 {[%clk 01:32:03]} 7. Nxc6 bxc6 {[%clk 01:32:29]} 8.
Bd3 {[%clk 01:33:00]} e5 {[%clk 01:32:44]} 9. O-O {[%clk 01:33:24]} Bc5 {[%clk
01:30:39]} 10. Kh1 {[%clk 01:29:30]} d6 {[%clk 01:26:52]} {[%emt 00:03:28]} 11.
f4 {[%clk 01:25:04]} {[%emt 00:04:55]} Ng4 {[%clk 01:24:47]} {[%emt 00:02:35]}
12. Qe1 {[%clk 01:25:32]} {[%emt 00:00:02]} h5 {[%clk 01:17:55]} {[%emt
00:07:22]} 13. f5 {[%clk 01:25:22]} {[%emt 00:00:41]} Rb8 {[%clk 01:10:07]}
{[%emt 00:08:18]} 14. Qg3 {[%clk 01:24:46]} {[%emt 00:01:05]} Ba6 {[%clk
01:07:22]} {[%emt 00:03:15]} 15. Be2 {[%clk 01:13:09]} {[%emt 00:12:08]} Bd4
{[%clk 01:02:10]} {[%emt 00:05:42]} 16. Rb1 {[%clk 01:09:51]} {[%emt 00:03:48]}
Qb6 {[%clk 00:47:31]} {[%emt 00:15:08]} 17. Bd2 {[%clk 01:04:25]} {[%emt
00:05:56]} Bf2 {[%clk 00:39:30]} {[%emt 00:08:32]} 18. Qh3 {[%clk 01:01:04]}
{[%emt 00:03:50]} Ke7 {[%clk 00:37:36]} {[%emt 00:02:24]} 19. b4 {[%clk
00:54:05]} {[%emt 00:07:30]} Bd4 {[%clk 00:23:43]} {[%emt 00:14:23]} 20. c5
{[%clk 00:36:58]} {[%emt 00:17:36]} dxc5 {[%clk 00:22:33]} {[%emt 00:01:40]} 21.
b5 {[%clk 00:34:24]} {[%emt 00:03:03]} Bb7 {[%clk 00:08:50]} {[%emt 00:14:14]}
22. bxc6 {[%clk 00:32:24]} {[%emt 00:02:31]} Qxc6 {[%clk 00:09:17]} {[%emt
00:00:03]} 23. Nd5+ {[%clk 00:32:46]} {[%emt 00:00:07]} Kd6 {[%clk 00:09:42]}
{[%emt 00:00:05]} 24. Ba5 {[%clk 00:26:10]} {[%emt 00:07:06]} Ba6 {[%clk
00:08:00]} {[%emt 00:02:13]} 25. Bxg4 {[%clk 00:23:52]} {[%emt 00:02:47]} Bxf1
{[%clk 00:04:13]} {[%emt 00:04:18]} 26. Rxf1 {[%clk 00:22:34]} {[%emt
00:01:48]} hxg4 {[%clk 00:04:34]} {[%emt 00:00:09]} 27. Qxg4 {[%clk 00:22:22]}
{[%emt 00:00:41]} Qb5 {[%clk 00:03:50]} {[%emt 00:01:12]} 28. Bc7+ {[%clk
00:21:40]} {[%emt 00:01:13]} Kc6 {[%clk 00:04:17]} {[%emt 00:00:03]} 29. Rd1
{[%clk 00:21:35]} {[%emt 00:00:32]} Rbg8 {[%clk 00:02:32]} {[%emt 00:02:15]} 30.
h3 {[%clk 00:20:04]} {[%emt 00:02:04]} Qb2 {[%clk 00:01:58]} {[%emt 00:01:04]}
31. Qf3 {[%clk 00:18:19]} {[%emt 00:02:14]} c4 {[%clk 00:00:51]} {[%emt
00:01:38]} 32. Qf1 {[%clk 00:18:47]} {[%emt 00:00:01]} Kd7 {[%clk 00:00:31]}
{[%emt 00:00:51]} 33. Qxc4 {[%clk 00:18:51]} {[%emt 00:00:26]} Rxh3+ {[%clk
00:00:31]} {[%emt 00:00:30]} 34. gxh3 {[%clk 00:19:18]} {[%emt 00:00:02]} Rh8
{[%clk 00:00:47]} {[%emt 00:00:15]} 35. Qa4+ {[%clk 00:18:48]} {[%emt
00:01:00]} Kc8 {[%clk 00:01:07]} {[%emt 00:00:10]} 36. Qa6+ {[%clk 00:19:02]}
{[%emt 00:00:15]} Kd7 {[%clk 00:01:33]} {[%emt 00:00:05]} 37. Qd6+ {[%clk
00:19:14]} {[%emt 00:00:15]} Kc8 {[%clk 00:01:49]} {[%emt 00:00:17]} 38. Ne7+
{[%clk 00:19:34]} {[%emt 00:00:10]} 1-0

[Event "2e tournoi de GMI du Barreau de Paris"]
[Site "Paris, France"]
[Date "2021.06.19"]
[Round "2.5"]
[White "Feller, Sebastien"]
[Black "Bellahcene, Bilel"]
[Result "1-0"]
[TimeControl "90+30"]
[WhiteElo "2568"]
[BlackElo "2499"]

1. Nf3 {[%clk 01:30:46]} {[%emt 01:58:13]} Nf6 {[%clk 01:30:55]} 2. c4 {[%clk
01:31:03]} e6 {[%clk 01:29:43]} 3. g3 {[%clk 01:30:37]} d5 {[%clk 01:30:08]} 4.
d4 {[%clk 01:28:51]} dxc4 {[%clk 01:30:03]} 5. Bg2 {[%clk 01:29:10]} a6 6. O-O
{[%clk 01:25:31]} {[%emt 00:00:36]} Nc6 {[%clk 01:30:54]} {[%emt 00:00:05]} 7.
Be3 {[%clk 01:25:41]} {[%emt 00:00:19]} Nd5 {[%clk 01:25:27]} {[%emt 00:05:57]}
8. Qc1 {[%clk 01:16:25]} {[%emt 00:09:46]} Be7 {[%clk 01:19:36]} {[%emt
00:06:21]} 9. Qxc4 {[%clk 01:10:41]} {[%emt 00:06:14]} O-O {[%clk 01:18:55]}
{[%emt 00:01:11]} 10. Bd2 {[%clk 01:02:24]} {[%emt 00:08:46]} Bf6 {[%clk
01:16:56]} {[%emt 00:02:30]} 11. Rd1 {[%clk 00:49:25]} {[%emt 00:13:29]} Nb6
{[%clk 01:13:08]} {[%emt 00:04:19]} 12. Qc1 {[%clk 00:48:45]} {[%emt 00:01:09]}
Qe7 {[%clk 01:00:46]} {[%emt 00:12:53]} 13. Bc3 {[%clk 00:44:39]} {[%emt
00:04:36]} Rd8 {[%clk 00:55:36]} {[%emt 00:05:41]} 14. e4 {[%clk 00:43:57]}
{[%emt 00:01:11]} Qe8 {[%clk 00:53:28]} {[%emt 00:02:38]} 15. b3 {[%clk
00:41:53]} {[%emt 00:02:34]} Bd7 {[%clk 00:49:46]} {[%emt 00:04:12]} 16. Nbd2
{[%clk 00:34:42]} {[%emt 00:07:40]} Rac8 {[%clk 00:48:39]} {[%emt 00:01:37]} 17.
Nf1 {[%clk 00:29:37]} {[%emt 00:05:35]} Na7 {[%clk 00:38:47]} {[%emt 00:10:23]}
18. a4 {[%clk 00:29:25]} {[%emt 00:00:42]} Be7 {[%clk 00:29:23]} {[%emt
00:09:54]} 19. Ne5 {[%clk 00:25:16]} {[%emt 00:04:39]} Qf8 {[%clk 00:28:12]}
{[%emt 00:01:41]} 20. Ne3 {[%clk 00:21:52]} {[%emt 00:03:54]} Be8 {[%clk
00:28:20]} {[%emt 00:00:22]} 21. Nd3 {[%clk 00:20:08]} {[%emt 00:02:14]} Nd7
{[%clk 00:18:06]} {[%emt 00:10:44]} 22. Qb2 {[%clk 00:19:05]} {[%emt 00:01:33]}
b5 {[%clk 00:14:41]} {[%emt 00:03:55]} 23. d5 {[%clk 00:12:42]} {[%emt
00:06:53]} b4 {[%clk 00:13:04]} {[%emt 00:02:07]} 24. Be1 {[%clk 00:11:37]}
{[%emt 00:01:35]} exd5 {[%clk 00:10:03]} {[%emt 00:03:31]} 25. exd5 {[%clk
00:06:13]} {[%emt 00:05:54]} Bf6 {[%clk 00:06:24]} {[%emt 00:04:09]} 26. Qe2
{[%clk 00:06:19]} {[%emt 00:00:23]} a5 {[%clk 00:06:39]} {[%emt 00:00:16]} 27.
Rac1 {[%clk 00:06:03]} {[%emt 00:00:45]} Nb6 {[%clk 00:07:01]} {[%emt
00:00:08]} 28. Nc5 {[%clk 00:05:17]} {[%emt 00:01:16]} Bd7 {[%clk 00:04:29]}
{[%emt 00:03:02]} 29. Qa6 {[%clk 00:04:12]} {[%emt 00:01:36]} Ra8 {[%clk
00:04:21]} {[%emt 00:00:37]} 30. Nxd7 {[%clk 00:04:37]} {[%emt 00:00:05]} Nxd7
{[%clk 00:04:23]} {[%emt 00:00:29]} 31. d6 {[%clk 00:04:04]} {[%emt 00:01:02]}
c6 {[%clk 00:04:41]} {[%emt 00:00:12]} 32. Qxa5 {[%clk 00:03:22]} {[%emt
00:01:12]} Bb2 {[%clk 00:03:20]} {[%emt 00:01:51]} 33. Rc2 {[%clk 00:03:17]}
{[%emt 00:00:34]} Be5 {[%clk 00:03:47]} {[%emt 00:00:03]} 34. Qxb4 {[%clk
00:03:08]} {[%emt 00:00:39]} Rdb8 {[%clk 00:04:00]} {[%emt 00:00:17]} 35. Qc4
{[%clk 00:02:33]} {[%emt 00:01:04]} Bxd6 {[%clk 00:03:18]} {[%emt 00:01:13]} 36.
Qd3 {[%clk 00:02:28]} {[%emt 00:00:35]} Bc5 {[%clk 00:03:37]} {[%emt 00:00:11]}
37. Qxd7 {[%clk 00:02:11]} {[%emt 00:00:47]} Bxe3 {[%clk 00:04:05]} {[%emt
00:00:02]} 38. fxe3 {[%clk 00:02:04]} {[%emt 00:00:37]} 1-0

[Event "2e tournoi de GMI du Barreau de Paris"]
[Site "Paris, France"]
[Date "2021.06.19"]
[Round "2.1"]
[White "Fedorchuk, Sergey A."]
[Black "Travadon, Loic"]
[Result "1-0"]
[TimeControl "90+30"]
[WhiteElo "2616"]
[BlackElo "2415"]

1. e4 {[%clk 01:11:32]} {[%emt 00:09:24]} g6 {[%clk 01:30:57]} {[%emt
00:00:11]} 2. d4 {[%clk 01:11:43]} {[%emt 00:00:19]} Bg7 {[%clk 01:31:21]}
{[%emt 00:00:06]} 3. Nc3 {[%clk 01:11:55]} {[%emt 00:00:18]} d6 {[%clk
01:31:39]} {[%emt 00:00:13]} 4. Be3 {[%clk 01:11:58]} {[%emt 00:00:27]} a6
{[%clk 01:32:00]} {[%emt 00:00:10]} 5. h4 {[%clk 01:09:47]} {[%emt 00:02:40]}
h5 {[%clk 01:31:54]} {[%emt 00:00:36]} 6. Qd2 {[%clk 01:03:25]} {[%emt
00:06:51]} b5 {[%clk 01:31:59]} {[%emt 00:00:26]} 7. O-O-O {[%clk 01:02:42]}
{[%emt 00:01:13]} Nc6 {[%clk 01:31:04]} {[%emt 00:01:25]} 8. Kb1 {[%clk
00:58:53]} {[%emt 00:04:19]} e5 {[%clk 01:30:01]} {[%emt 00:01:33]} 9. dxe5
{[%clk 00:48:44]} {[%emt 00:10:38]} dxe5 {[%clk 01:28:12]} {[%emt 00:02:20]} 10.
Nd5 {[%clk 00:45:38]} {[%emt 00:03:36]} Nf6 {[%clk 01:16:56]} {[%emt 00:11:47]}
11. Qc3 {[%clk 00:33:07]} {[%emt 00:13:00]} Bb7 {[%clk 01:14:52]} {[%emt
00:02:34]} 12. Nxf6+ {[%clk 00:26:22]} {[%emt 00:07:15]} Qxf6 {[%clk 01:15:17]}
{[%emt 00:00:05]} 13. Nf3 {[%clk 00:20:45]} {[%emt 00:06:07]} O-O {[%clk
01:15:28]} {[%emt 00:00:18]} 14. Be2 {[%clk 00:21:07]} {[%emt 00:00:08]} Qe6
{[%clk 01:14:44]} {[%emt 00:01:14]} 15. a4 {[%clk 00:14:21]} {[%emt 00:07:16]}
Rfb8 {[%clk 01:10:58]} {[%emt 00:04:17]} 16. Ng5 {[%clk 00:13:09]} {[%emt
00:01:41]} Qe7 {[%clk 01:07:25]} {[%emt 00:04:03]} 17. Bc5 {[%clk 00:11:49]}
{[%emt 00:01:51]} b4 {[%clk 01:07:10]} {[%emt 00:00:46]} 18. Qb3 {[%clk
00:07:04]} {[%emt 00:05:14]} Qe8 {[%clk 01:04:54]} {[%emt 00:02:46]} 19. Bc4
{[%clk 00:06:11]} {[%emt 00:01:23]} Nd8 {[%clk 01:05:06]} {[%emt 00:00:19]} 20.
Rxd8 {[%clk 00:02:27]} {[%emt 00:04:13]} Qxd8 {[%clk 01:05:34]} {[%emt
00:00:02]} 21. Bxf7+ {[%clk 00:02:32]} {[%emt 00:00:25]} Kh8 {[%clk 01:06:03]}
22. Bxg6 {[%clk 00:02:35]} {[%emt 00:00:28]} Qf6 {[%clk 01:06:27]} {[%emt
00:00:06]} 23. Bxh5 {[%clk 00:02:43]} {[%emt 00:00:22]} Bc6 {[%clk 01:05:36]}
{[%emt 00:01:21]} 24. Nf7+ {[%clk 00:02:01]} {[%emt 00:01:12]} Kh7 {[%clk
01:05:59]} {[%emt 00:00:07]} 25. Bg4 {[%clk 00:02:02]} {[%emt 00:00:29]} Be8
{[%clk 01:04:27]} {[%emt 00:02:03]} 26. Bf5+ {[%clk 00:01:49]} {[%emt
00:00:43]} Kg8 {[%clk 01:04:56]} {[%emt 00:00:01]} 27. Nd6+ {[%clk 00:00:47]}
{[%emt 00:01:32]} Kh8 {[%clk 01:05:15]} {[%emt 00:00:10]} 28. Nxe8 {[%clk
00:01:10]} {[%emt 00:00:06]} Rxe8 {[%clk 01:05:40]} {[%emt 00:00:06]} 29. Bxb4
{[%clk 00:01:03]} {[%emt 00:00:37]} Rab8 {[%clk 01:05:10]} {[%emt 00:01:01]} 30.
Qf3 {[%clk 00:00:47]} {[%emt 00:00:45]} Qh6 {[%clk 01:05:03]} {[%emt 00:00:37]}
31. Bc3 {[%clk 00:01:09]} {[%emt 00:00:08]} Kg8 {[%clk 01:03:43]} {[%emt
00:01:50]} 32. Qd3 {[%clk 00:01:12]} {[%emt 00:00:27]} Red8 {[%clk 01:03:32]}
{[%emt 00:00:41]} 33. Qc4+ {[%clk 00:01:27]} {[%emt 00:00:15]} Kh8 {[%clk
01:03:56]} {[%emt 00:00:06]} 34. h5 {[%clk 00:01:18]} {[%emt 00:00:39]} Rd6
{[%clk 01:01:51]} {[%emt 00:02:36]} 35. Qxc7 {[%clk 00:00:59]} {[%emt
00:00:49]} Rdb6 {[%clk 01:02:19]} {[%emt 00:00:02]} 36. Rd1 {[%clk 00:01:00]}
{[%emt 00:00:29]} Qf6 {[%clk 01:01:14]} {[%emt 00:01:34]} 37. h6 {[%clk
00:01:11]} {[%emt 00:00:19]} Qxh6 {[%clk 00:58:50]} {[%emt 00:02:55]} 38. Rd8+
{[%clk 00:01:32]} {[%emt 00:00:08]} 1-0

[ePGN "0.1;DGT LiveChess/2.2.5"]

[Event "2e tournoi de GMI du Barreau de Paris"]
[Site "Paris, France"]
[Date "2021.06.20"]
[Round "3.5"]
[White "Msellek, Ilyass"]
[Black "Vlachos, Anatole"]
[Result "1/2-1/2"]
[TimeControl "90+30"]
[WhiteElo "2334"]
[BlackElo "2439"]

1. e4 {[%clk 01:30:50]} {[%emt 00:00:09]} e5 {[%clk 01:30:38]} {[%emt
00:00:22]} 2. Nf3 {[%clk 01:31:13]} {[%emt 00:00:06]} Nc6 {[%clk 01:31:00]}
{[%emt 00:00:05]} 3. Bb5 {[%clk 01:31:36]} {[%emt 00:00:11]} a6 {[%clk
01:31:25]} {[%emt 00:00:05]} 4. Ba4 {[%clk 01:32:02]} {[%emt 00:00:05]} Nf6
{[%clk 01:31:50]} {[%emt 00:00:04]} 5. O-O {[%clk 01:31:50]} {[%emt 00:00:42]}
Be7 {[%clk 01:32:14]} {[%emt 00:00:06]} 6. Re1 {[%clk 01:31:52]} {[%emt
00:00:29]} b5 {[%clk 01:32:04]} {[%emt 00:00:39]} 7. Bb3 {[%clk 01:32:18]}
{[%emt 00:00:04]} O-O {[%clk 01:30:57]} {[%emt 00:01:36]} 8. a4 {[%clk
01:28:56]} {[%emt 00:03:54]} d5 {[%clk 01:28:31]} {[%emt 00:02:56]} 9. exd5
{[%clk 01:13:43]} {[%emt 00:15:41]} Nd4 {[%clk 01:22:43]} {[%emt 00:06:19]} 10.
Nxd4 {[%clk 01:09:56]} {[%emt 00:04:17]} exd4 {[%clk 01:23:11]} {[%emt
00:00:02]} 11. axb5 {[%clk 01:09:58]} {[%emt 00:00:28]} d3 {[%clk 01:17:25]}
{[%emt 00:06:15]} 12. h3 {[%clk 00:50:02]} {[%emt 00:20:26]} Bc5 {[%clk
01:12:18]} {[%emt 00:05:36]} 13. Nc3 {[%clk 00:44:26]} {[%emt 00:06:08]} Ng4
{[%clk 00:57:24]} {[%emt 00:15:24]} 14. hxg4 {[%clk 00:38:18]} {[%emt
00:06:38]} Qh4 {[%clk 00:50:31]} {[%emt 00:07:23]} 15. Re3 {[%clk 00:33:22]}
{[%emt 00:05:27]} Bxg4 {[%clk 00:48:39]} {[%emt 00:02:22]} 16. Qf1 {[%clk
00:31:54]} {[%emt 00:01:57]} f5 {[%clk 00:40:50]} {[%emt 00:08:18]} 17. d6+
{[%clk 00:25:44]} {[%emt 00:06:40]} Kh8 {[%clk 00:41:14]} {[%emt 00:00:06]}
1/2-1/2